[Event "Early-Titled-Tuesday-Blitz-May-14-2024"]
[Site "Chess.com"]
[Date "2024.05.14"]
[Round "8"]
[White "Evan_Attaker"]
[Black "CristianS27"]
[Result "1-0"]
[WhiteElo "2649"]
[BlackElo "2544"]
[TimeControl "180+1"]
[EndTime "9:29:27 PDT"]
[Termination "Evan_Attaker won on time"]

1. Nf3 {[%clk 0:03:00.9]} 1... Nf6 {[%clk 0:02:59.7]} 2. c4 {[%clk 0:03:00.9]}
2... g6 {[%clk 0:02:59.7]} 3. b3 {[%clk 0:03:00.6]} 3... Bg7 {[%clk 0:02:59.9]}
4. Bb2 {[%clk 0:03:01.5]} 4... O-O {[%clk 0:03:00.8]} 5. e3 {[%clk 0:03:01.9]}
5... c5 {[%clk 0:03:00.1]} 6. Be2 {[%clk 0:03:02.3]} 6... Nc6 {[%clk 0:03:00.2]}
7. d3 {[%clk 0:03:02.4]} 7... d6 {[%clk 0:03:00.4]} 8. a3 {[%clk 0:03:02.1]}
8... e5 {[%clk 0:03:00.2]} 9. Qc2 {[%clk 0:03:02.3]} 9... Bf5 {[%clk 0:02:54.4]}
10. Nbd2 {[%clk 0:03:02.4]} 10... Re8 {[%clk 0:02:54.7]} 11. O-O {[%clk
0:03:00.3]} 11... e4 {[%clk 0:02:44.4]} 12. dxe4 {[%clk 0:03:00.3]} 12... Nxe4
{[%clk 0:02:45.3]} 13. Nxe4 {[%clk 0:03:00.5]} 13... Bxe4 {[%clk 0:02:43.1]} 14.
Qd2 {[%clk 0:03:00.4]} 14... d5 {[%clk 0:02:28.5]} 15. Bxg7 {[%clk 0:02:57.3]}
15... Kxg7 {[%clk 0:02:29.4]} 16. cxd5 {[%clk 0:02:51.6]} 16... Qxd5 {[%clk
0:02:14.3]} 17. Qc3+ {[%clk 0:02:49.9]} 17... Kg8 {[%clk 0:02:04.9]} 18. Rfd1
{[%clk 0:02:48.7]} 18... Qf5 {[%clk 0:01:49.4]} 19. Rd6 {[%clk 0:02:39.2]} 19...
Ne5 {[%clk 0:01:12]} 20. Nxe5 {[%clk 0:02:33.2]} 20... Rxe5 {[%clk 0:01:09.7]}
21. Rad1 {[%clk 0:02:28.1]} 21... Rae8 {[%clk 0:00:59.8]} 22. f3 {[%clk
0:02:17.4]} 22... Bc6 {[%clk 0:00:54.4]} 23. e4 {[%clk 0:02:17.4]} 23... Qf4
{[%clk 0:00:23.3]} 24. g3 {[%clk 0:01:59.5]} 24... Qh6 {[%clk 0:00:23.1]} 25.
Bc4 {[%clk 0:01:58.8]} 25... Qh5 {[%clk 0:00:11.2]} 26. Rf6 {[%clk 0:01:49]}
26... R5e7 {[%clk 0:00:08.1]} 27. Bd5 {[%clk 0:01:41.9]} 27... Bxd5 {[%clk
0:00:04.9]} 28. Rxd5 {[%clk 0:01:42.8]} 28... Qh6 {[%clk 0:00:04.1]} 29. Qxc5
{[%clk 0:01:30.8]} 29... b6 {[%clk 0:00:02.2]} 30. Qc3 {[%clk 0:01:26.7]} 30...
Qg7 {[%clk 0:00:02.5]} 31. Rc6 {[%clk 0:01:26.1]} 31... Qh6 {[%clk 0:00:01.2]}
32. Rc8 {[%clk 0:01:24.1]} 32... Qg5 {[%clk 0:00:00.1]} 33. Rdd8 {[%clk
0:01:19.3]} 1-0

[Event "Early-Titled-Tuesday-Blitz-May-14-2024"]
[Site "Chess.com"]
[Date "2024.05.14"]
[Round "8"]
[White "HowTo2Draw"]
[Black "Tolyanius"]
[Result "0-1"]
[WhiteElo "2552"]
[BlackElo "2673"]
[TimeControl "180+1"]
[EndTime "9:29:28 PDT"]
[Termination "Tolyanius won by resignation"]

1. c4 {[%clk 0:03:00.9]} 1... e6 {[%clk 0:02:59.5]} 2. g3 {[%clk 0:02:57.4]}
2... d5 {[%clk 0:03:00.4]} 3. Bg2 {[%clk 0:02:57.2]} 3... c6 {[%clk 0:03:00.7]}
4. Nf3 {[%clk 0:02:57.5]} 4... Nd7 {[%clk 0:03:00.9]} 5. O-O {[%clk 0:02:57.8]}
5... dxc4 {[%clk 0:03:01.4]} 6. a4 {[%clk 0:02:56.3]} 6... Ngf6 {[%clk
0:02:47.8]} 7. a5 {[%clk 0:02:55.5]} 7... Be7 {[%clk 0:02:30.1]} 8. Qc2 {[%clk
0:02:53.3]} 8... O-O {[%clk 0:02:30.3]} 9. Qxc4 {[%clk 0:02:53.2]} 9... e5
{[%clk 0:02:15.2]} 10. Nc3 {[%clk 0:02:50.5]} 10... h6 {[%clk 0:02:11.4]} 11. d4
{[%clk 0:02:47]} 11... exd4 {[%clk 0:02:07]} 12. Qxd4 {[%clk 0:02:42.8]} 12...
Bc5 {[%clk 0:02:05.4]} 13. Qd1 {[%clk 0:02:39]} 13... Qe7 {[%clk 0:02:05.1]} 14.
a6 {[%clk 0:02:26.5]} 14... bxa6 {[%clk 0:02:04.1]} 15. Nd4 {[%clk 0:02:26.1]}
15... Ne5 {[%clk 0:01:58.8]} 16. Nxc6 {[%clk 0:02:16.6]} 16... Nxc6 {[%clk
0:01:59.7]} 17. Bxc6 {[%clk 0:02:16.6]} 17... Rb8 {[%clk 0:02:00.4]} 18. Qc2
{[%clk 0:02:12.2]} 18... h5 {[%clk 0:01:56.1]} 19. Bf4 {[%clk 0:02:10.6]} 19...
Rb4 {[%clk 0:01:53.9]} 20. Ra4 {[%clk 0:02:05.4]} 20... h4 {[%clk 0:01:44.6]}
21. Rxb4 {[%clk 0:02:00.2]} 21... Bxb4 {[%clk 0:01:45.5]} 22. Ne4 {[%clk
0:01:52.1]} 22... hxg3 {[%clk 0:01:41.3]} 23. hxg3 {[%clk 0:01:39.5]} 23... Bf5
{[%clk 0:01:40.3]} 24. Nxf6+ {[%clk 0:00:58.1]} 24... Qxf6 {[%clk 0:01:41.2]}
25. Qa4 {[%clk 0:00:44.2]} 25... Bc5 {[%clk 0:01:35.9]} 26. Bf3 {[%clk
0:00:31.8]} 26... g5 {[%clk 0:01:21.9]} 27. Bc1 {[%clk 0:00:21.6]} 27... Rd8
{[%clk 0:01:09.4]} 28. b4 {[%clk 0:00:21.8]} 28... Bb6 {[%clk 0:01:07.6]} 29.
Qb3 {[%clk 0:00:21.1]} 29... Qd6 {[%clk 0:00:58]} 30. Bb2 {[%clk 0:00:20.8]}
30... Qxg3+ {[%clk 0:00:56.6]} 31. Kh1 {[%clk 0:00:21.1]} 31... Qh3+ {[%clk
0:00:56.5]} 32. Kg1 {[%clk 0:00:21.5]} 32... Qg3+ {[%clk 0:00:55]} 33. Kh1
{[%clk 0:00:21.9]} 33... Bxf2 {[%clk 0:00:52.1]} 34. Rxf2 {[%clk 0:00:22.5]}
34... Qxf2 {[%clk 0:00:52.2]} 35. Qc3 {[%clk 0:00:23.4]} 35... Rd1+ {[%clk
0:00:52]} 0-1

[Event "Early-Titled-Tuesday-Blitz-May-14-2024"]
[Site "Chess.com"]
[Date "2024.05.14"]
[Round "8"]
[White "Rud_Makarian"]
[Black "MatthewG-p4p"]
[Result "1/2-1/2"]
[WhiteElo "2953"]
[BlackElo "2848"]
[TimeControl "180+1"]
[EndTime "9:29:31 PDT"]
[Termination "Game drawn by repetition"]

1. d4 {[%clk 0:02:57.6]} 1... Nf6 {[%clk 0:02:52.4]} 2. c4 {[%clk 0:02:56]} 2...
c5 {[%clk 0:02:52.9]} 3. d5 {[%clk 0:02:55.9]} 3... e6 {[%clk 0:02:53.6]} 4. Nc3
{[%clk 0:02:56.4]} 4... exd5 {[%clk 0:02:54.2]} 5. cxd5 {[%clk 0:02:57.3]} 5...
d6 {[%clk 0:02:55.1]} 6. e4 {[%clk 0:02:57.8]} 6... g6 {[%clk 0:02:55.4]} 7. h3
{[%clk 0:02:58.5]} 7... Bg7 {[%clk 0:02:55.7]} 8. Nf3 {[%clk 0:02:59.4]} 8...
O-O {[%clk 0:02:53.2]} 9. Bd3 {[%clk 0:03:00.2]} 9... b5 {[%clk 0:02:53.3]} 10.
Nxb5 {[%clk 0:02:57.5]} 10... Re8 {[%clk 0:02:51.5]} 11. Nd2 {[%clk 0:02:58.1]}
11... Nxe4 {[%clk 0:02:24.5]} 12. Bxe4 {[%clk 0:02:47.9]} 12... Ba6 {[%clk
0:02:04.4]} 13. a4 {[%clk 0:02:38.8]} 13... f5 {[%clk 0:02:00.1]} 14. O-O {[%clk
0:02:38.6]} 14... fxe4 {[%clk 0:01:59.6]} 15. Nc4 {[%clk 0:02:39.1]} 15... Bxb5
{[%clk 0:01:57.6]} 16. axb5 {[%clk 0:02:40]} 16... Rf8 {[%clk 0:01:30.4]} 17.
Qg4 {[%clk 0:02:38.8]} 17... Nd7 {[%clk 0:00:51.6]} 18. Qxe4 {[%clk 0:02:20.6]}
18... Ne5 {[%clk 0:00:51.6]} 19. Ra6 {[%clk 0:02:14.3]} 19... Nxc4 {[%clk
0:00:50.7]} 20. Qxc4 {[%clk 0:02:15.2]} 20... Bd4 {[%clk 0:00:40.8]} 21. Be3
{[%clk 0:02:01.9]} 21... Bxe3 {[%clk 0:00:36]} 22. fxe3 {[%clk 0:02:02.8]} 22...
Qe7 {[%clk 0:00:35.6]} 23. Ra3 {[%clk 0:01:32.9]} 23... Rxf1+ {[%clk 0:00:32.2]}
24. Qxf1 {[%clk 0:01:30.8]} 24... Rf8 {[%clk 0:00:30.1]} 25. Qe2 {[%clk
0:01:31.4]} 25... Qb7 {[%clk 0:00:27.9]} 26. e4 {[%clk 0:01:25.2]} 26... Re8
{[%clk 0:00:28.3]} 27. Qg4 {[%clk 0:01:11.8]} 27... Qxb5 {[%clk 0:00:17.8]} 28.
Rxa7 {[%clk 0:01:11.9]} 28... Qxb2 {[%clk 0:00:18.1]} 29. Qd7 {[%clk 0:01:09.9]}
29... Qc1+ {[%clk 0:00:18.3]} 30. Kh2 {[%clk 0:01:04.6]} 30... Qf4+ {[%clk
0:00:18.8]} 31. Kh1 {[%clk 0:01:01]} 31... Qf1+ {[%clk 0:00:18.8]} 32. Kh2
{[%clk 0:01:01.5]} 32... Qf4+ {[%clk 0:00:19.7]} 33. Kg1 {[%clk 0:01:01.5]}
33... Qc1+ {[%clk 0:00:20]} 34. Kh2 {[%clk 0:00:57.6]} 34... Qf4+ {[%clk
0:00:20.2]} 1/2-1/2

[Event "Early-Titled-Tuesday-Blitz-May-14-2024"]
[Site "Chess.com"]
[Date "2024.05.14"]
[Round "8"]
[White "Sasha_Solovev_777"]
[Black "RandomNoob04"]
[Result "0-1"]
[WhiteElo "2232"]
[BlackElo "2724"]
[TimeControl "180+1"]
[EndTime "9:29:31 PDT"]
[Termination "RandomNoob04 won by checkmate"]

1. e4 {[%clk 0:03:00.9]} 1... d5 {[%clk 0:03:00.7]} 2. exd5 {[%clk 0:03:00.4]}
2... Qxd5 {[%clk 0:03:01.6]} 3. Nc3 {[%clk 0:03:00.5]} 3... Qa5 {[%clk
0:03:02.3]} 4. d4 {[%clk 0:02:59.6]} 4... Nf6 {[%clk 0:03:02.9]} 5. Nf3 {[%clk
0:02:59.4]} 5... Bf5 {[%clk 0:03:03.6]} 6. Bc4 {[%clk 0:02:59.2]} 6... e6 {[%clk
0:03:03.8]} 7. h3 {[%clk 0:02:59.1]} 7... Bb4 {[%clk 0:03:04.7]} 8. Bd2 {[%clk
0:02:56.5]} 8... Nc6 {[%clk 0:03:03]} 9. Bb5 {[%clk 0:02:42.8]} 9... O-O {[%clk
0:02:35.3]} 10. Bxc6 {[%clk 0:02:40.9]} 10... bxc6 {[%clk 0:02:36.2]} 11. a3
{[%clk 0:02:38.4]} 11... Be7 {[%clk 0:02:34.5]} 12. O-O {[%clk 0:02:20.8]} 12...
Qb6 {[%clk 0:02:35]} 13. b4 {[%clk 0:02:09.1]} 13... a5 {[%clk 0:02:34.6]} 14.
Na4 {[%clk 0:01:40.4]} 14... Qb5 {[%clk 0:02:34]} 15. Nc5 {[%clk 0:01:14.1]}
15... Rfd8 {[%clk 0:02:26.6]} 16. c3 {[%clk 0:01:00.8]} 16... Ne4 {[%clk
0:01:59.3]} 17. Re1 {[%clk 0:00:30.6]} 17... Nxd2 {[%clk 0:01:43.7]} 18. Qxd2
{[%clk 0:00:30.4]} 18... h6 {[%clk 0:01:31.4]} 19. Qe3 {[%clk 0:00:29]} 19...
Qc4 {[%clk 0:01:23.6]} 20. Ne5 {[%clk 0:00:27.6]} 20... Qd5 {[%clk 0:01:24.2]}
21. g4 {[%clk 0:00:18.1]} 21... Bh7 {[%clk 0:01:21.3]} 22. Rad1 {[%clk
0:00:14.5]} 22... axb4 {[%clk 0:01:21]} 23. axb4 {[%clk 0:00:14.5]} 23... Ra3
{[%clk 0:01:12.5]} 24. Qf4 {[%clk 0:00:13.5]} 24... f6 {[%clk 0:01:04.8]} 25. c4
{[%clk 0:00:13.1]} 25... fxe5 {[%clk 0:01:03.2]} 26. dxe5 {[%clk 0:00:05.3]}
26... Qxd1 {[%clk 0:00:58.2]} 27. Rxd1 {[%clk 0:00:06.2]} 27... Rxd1+ {[%clk
0:00:58.5]} 28. Kg2 {[%clk 0:00:07]} 28... Bxc5 {[%clk 0:00:59.1]} 29. bxc5
{[%clk 0:00:06.1]} 29... Re1 {[%clk 0:00:58.9]} 30. Qd4 {[%clk 0:00:05.5]} 30...
Be4+ {[%clk 0:00:58.9]} 31. Kh2 {[%clk 0:00:05.6]} 31... Rh1# {[%clk 0:00:58.8]}
0-1

[Event "Early-Titled-Tuesday-Blitz-May-14-2024"]
[Site "Chess.com"]
[Date "2024.05.14"]
[Round "8"]
[White "NikitaShnadrygin"]
[Black "Bauman_Guy"]
[Result "1/2-1/2"]
[WhiteElo "2744"]
[BlackElo "2892"]
[TimeControl "180+1"]
[EndTime "9:29:35 PDT"]
[Termination "Game drawn by repetition"]

1. e4 {[%clk 0:03:00.9]} 1... c5 {[%clk 0:02:57.7]} 2. Nf3 {[%clk 0:03:00.2]}
2... d6 {[%clk 0:02:58.1]} 3. d4 {[%clk 0:03:00.6]} 3... Nf6 {[%clk 0:02:58.7]}
4. Nc3 {[%clk 0:03:00.6]} 4... cxd4 {[%clk 0:02:58.9]} 5. Nxd4 {[%clk
0:03:01.5]} 5... a6 {[%clk 0:02:59.3]} 6. Bg5 {[%clk 0:03:01.8]} 6... Nbd7
{[%clk 0:02:59.2]} 7. f4 {[%clk 0:03:01.4]} 7... Qa5 {[%clk 0:02:58.4]} 8. Qd2
{[%clk 0:02:53.1]} 8... h6 {[%clk 0:02:54.7]} 9. Bh4 {[%clk 0:02:45.6]} 9... e6
{[%clk 0:02:52.2]} 10. f5 {[%clk 0:02:26.3]} 10... e5 {[%clk 0:02:50.7]} 11. Nb3
{[%clk 0:02:26.2]} 11... Qc7 {[%clk 0:02:49.4]} 12. Bxf6 {[%clk 0:01:52.1]}
12... Nxf6 {[%clk 0:02:50.3]} 13. Nd5 {[%clk 0:01:52.3]} 13... Nxd5 {[%clk
0:02:47.9]} 14. Qxd5 {[%clk 0:01:53.2]} 14... Be7 {[%clk 0:02:32.6]} 15. c4
{[%clk 0:01:40]} 15... a5 {[%clk 0:02:24.9]} 16. Nd2 {[%clk 0:01:29.9]} 16... a4
{[%clk 0:02:24.1]} 17. Be2 {[%clk 0:01:17.5]} 17... O-O {[%clk 0:02:22.6]} 18.
Qd3 {[%clk 0:01:13.4]} 18... Qb6 {[%clk 0:02:17.9]} 19. O-O-O {[%clk 0:01:01.9]}
19... Bd7 {[%clk 0:01:57.1]} 20. h4 {[%clk 0:00:56.4]} 20... Rfc8 {[%clk
0:01:56.7]} 21. Kb1 {[%clk 0:00:55.2]} 21... Qa5 {[%clk 0:01:36.3]} 22. g4
{[%clk 0:00:53.3]} 22... b5 {[%clk 0:01:36.1]} 23. g5 {[%clk 0:00:49.9]} 23...
hxg5 {[%clk 0:01:30.2]} 24. hxg5 {[%clk 0:00:41.5]} 24... Bxg5 {[%clk 0:01:28]}
25. Qxd6 {[%clk 0:00:32.5]} 25... Rd8 {[%clk 0:01:19.6]} 26. Qxe5 {[%clk
0:00:28.1]} 26... Bf6 {[%clk 0:01:05.8]} 27. Qh2 {[%clk 0:00:27.2]} 27... Kf8
{[%clk 0:00:57.6]} 28. Qd6+ {[%clk 0:00:12.9]} 28... Kg8 {[%clk 0:00:57.2]} 29.
Qh2 {[%clk 0:00:13]} 29... Kf8 {[%clk 0:00:53.6]} 30. Qd6+ {[%clk 0:00:12.3]}
30... Kg8 {[%clk 0:00:48.5]} 31. Qh2 {[%clk 0:00:10.6]} 1/2-1/2

[Event "Early-Titled-Tuesday-Blitz-May-14-2024"]
[Site "Chess.com"]
[Date "2024.05.14"]
[Round "8"]
[White "DerKnipser"]
[Black "aljado"]
[Result "1-0"]
[WhiteElo "2346"]
[BlackElo "2129"]
[TimeControl "180+1"]
[EndTime "9:29:42 PDT"]
[Termination "DerKnipser won by resignation"]

1. e4 {[%clk 0:02:50.3]} 1... c5 {[%clk 0:02:58.6]} 2. d4 {[%clk 0:02:50.6]}
2... cxd4 {[%clk 0:02:57.5]} 3. c3 {[%clk 0:02:51.4]} 3... d5 {[%clk 0:02:57]}
4. exd5 {[%clk 0:02:52.2]} 4... Qxd5 {[%clk 0:02:56.6]} 5. Nf3 {[%clk
0:02:53.1]} 5... Nc6 {[%clk 0:02:53.4]} 6. cxd4 {[%clk 0:02:53.1]} 6... Bg4
{[%clk 0:02:51]} 7. Be2 {[%clk 0:02:53.7]} 7... e6 {[%clk 0:02:46.5]} 8. Nc3
{[%clk 0:02:54.2]} 8... Bb4 {[%clk 0:02:46.9]} 9. Be3 {[%clk 0:02:52.1]} 9...
Nf6 {[%clk 0:02:44]} 10. O-O {[%clk 0:02:52.7]} 10... Bxc3 {[%clk 0:02:44.1]}
11. bxc3 {[%clk 0:02:53.6]} 11... O-O {[%clk 0:02:43.1]} 12. h3 {[%clk 0:02:54]}
12... Bh5 {[%clk 0:02:41.5]} 13. c4 {[%clk 0:02:54.5]} 13... Qd7 {[%clk
0:02:38.2]} 14. Qb3 {[%clk 0:02:51.7]} 14... Rac8 {[%clk 0:02:26]} 15. Rfd1
{[%clk 0:02:51.2]} 15... Qc7 {[%clk 0:02:19.6]} 16. Rac1 {[%clk 0:02:50.5]}
16... Rfd8 {[%clk 0:02:09.2]} 17. g4 {[%clk 0:02:48.6]} 17... Bg6 {[%clk
0:02:08.1]} 18. d5 {[%clk 0:02:45.2]} 18... Ne5 {[%clk 0:01:43.1]} 19. dxe6
{[%clk 0:02:39.9]} 19... Rxd1+ {[%clk 0:01:34.9]} 20. Bxd1 {[%clk 0:02:33.1]}
20... fxe6 {[%clk 0:01:25.3]} 21. Nxe5 {[%clk 0:02:27]} 21... Qxe5 {[%clk
0:01:22.7]} 22. Qxb7 {[%clk 0:02:26.8]} 22... Re8 {[%clk 0:01:16.4]} 23. Qxa7
{[%clk 0:02:24.1]} 23... Be4 {[%clk 0:01:08.6]} 24. Qc5 {[%clk 0:02:09.7]} 24...
Qb2 {[%clk 0:01:02.5]} 25. a4 {[%clk 0:02:01.6]} 25... Qb7 {[%clk 0:00:31.4]}
26. Qb5 {[%clk 0:01:55.3]} 26... Qa8 {[%clk 0:00:29.8]} 27. c5 {[%clk
0:01:44.9]} 27... Bh1 {[%clk 0:00:26.8]} 28. c6 {[%clk 0:01:42.3]} 28... Rb8
{[%clk 0:00:20.6]} 29. Qxb8+ {[%clk 0:01:38.1]} 29... Qxb8 {[%clk 0:00:19.2]}
30. c7 {[%clk 0:01:31.8]} 30... Qc8 {[%clk 0:00:18.9]} 31. Kxh1 {[%clk 0:01:32]}
31... Nd5 {[%clk 0:00:16.3]} 32. Bf3 {[%clk 0:01:24.7]} 32... Nxc7 {[%clk
0:00:15.3]} 33. Bb6 {[%clk 0:01:24.4]} 33... Qa6 {[%clk 0:00:13.4]} 34. Bxc7
{[%clk 0:01:22.5]} 34... Qxa4 {[%clk 0:00:13.2]} 35. Kg2 {[%clk 0:01:20.4]}
35... Qa3 {[%clk 0:00:12.4]} 36. Bf4 {[%clk 0:01:18.1]} 36... Kf7 {[%clk
0:00:11.8]} 37. Rc7+ {[%clk 0:01:17.6]} 37... Kf6 {[%clk 0:00:11]} 38. Be4
{[%clk 0:01:15.2]} 38... Qa5 {[%clk 0:00:09.4]} 39. g5+ {[%clk 0:01:13.4]} 1-0

[Event "Early-Titled-Tuesday-Blitz-May-14-2024"]
[Site "Chess.com"]
[Date "2024.05.14"]
[Round "8"]
[White "rionelG"]
[Black "rollercoaster29"]
[Result "0-1"]
[WhiteElo "2285"]
[BlackElo "2456"]
[TimeControl "180+1"]
[EndTime "9:29:44 PDT"]
[Termination "rollercoaster29 won by checkmate"]

1. e4 {[%clk 0:03:00.9]} 1... c5 {[%clk 0:02:52.4]} 2. Nf3 {[%clk 0:03:00.9]}
2... d6 {[%clk 0:02:52.5]} 3. d4 {[%clk 0:03:01.1]} 3... cxd4 {[%clk 0:02:52.8]}
4. Nxd4 {[%clk 0:03:02]} 4... Nf6 {[%clk 0:02:53.2]} 5. Nc3 {[%clk 0:03:02.4]}
5... a6 {[%clk 0:02:52.2]} 6. Bg5 {[%clk 0:03:00]} 6... e6 {[%clk 0:02:50.5]} 7.
f4 {[%clk 0:03:00.6]} 7... Be7 {[%clk 0:02:50]} 8. Qe2 {[%clk 0:02:59.8]} 8...
Nc6 {[%clk 0:02:49]} 9. O-O-O {[%clk 0:02:57.1]} 9... Qb6 {[%clk 0:02:42.5]} 10.
Nb3 {[%clk 0:02:52.2]} 10... O-O {[%clk 0:02:32.1]} 11. g4 {[%clk 0:02:50.9]}
11... Qc7 {[%clk 0:02:16.7]} 12. h4 {[%clk 0:02:48.4]} 12... b5 {[%clk
0:02:09.9]} 13. a3 {[%clk 0:02:30.6]} 13... b4 {[%clk 0:02:08.9]} 14. axb4
{[%clk 0:02:28.1]} 14... Nxb4 {[%clk 0:02:09.8]} 15. e5 {[%clk 0:02:19.6]} 15...
Nfd5 {[%clk 0:02:02.4]} 16. Nxd5 {[%clk 0:02:15.1]} 16... Nxd5 {[%clk
0:02:00.7]} 17. Bg2 {[%clk 0:02:15.6]} 17... Bb7 {[%clk 0:01:56.7]} 18. exd6
{[%clk 0:02:12.7]} 18... Bxd6 {[%clk 0:01:55.1]} 19. f5 {[%clk 0:01:53]} 19...
Bf4+ {[%clk 0:01:43.2]} 20. Kb1 {[%clk 0:01:50.4]} 20... Bxg5 {[%clk 0:01:16.9]}
21. hxg5 {[%clk 0:01:49.3]} 21... Nf4 {[%clk 0:01:16.5]} 22. Qf2 {[%clk
0:01:44.3]} 22... Bxg2 {[%clk 0:01:12]} 23. Rh2 {[%clk 0:01:36]} 23... Rfc8
{[%clk 0:01:04.2]} 24. Rxg2 {[%clk 0:01:00.2]} 24... Nxg2 {[%clk 0:01:03.3]} 25.
Qxg2 {[%clk 0:01:01.1]} 25... Rab8 {[%clk 0:01:01.6]} 26. fxe6 {[%clk
0:00:57.8]} 26... fxe6 {[%clk 0:01:01.1]} 27. Rh1 {[%clk 0:00:49.9]} 27... Qc6
{[%clk 0:00:51]} 28. Qh2 {[%clk 0:00:47.8]} 28... Qe4 {[%clk 0:00:50.9]} 29. Nd4
{[%clk 0:00:32.2]} 29... Qxd4 {[%clk 0:00:40.5]} 30. Qxh7+ {[%clk 0:00:31.4]}
30... Kf7 {[%clk 0:00:39.3]} 31. Rf1+ {[%clk 0:00:21.7]} 31... Ke7 {[%clk
0:00:38.6]} 32. Rf3 {[%clk 0:00:18.4]} 32... Qxb2# {[%clk 0:00:37.9]} 0-1

[Event "Early-Titled-Tuesday-Blitz-May-14-2024"]
[Site "Chess.com"]
[Date "2024.05.14"]
[Round "8"]
[White "EvgenyBurmakin"]
[Black "Eloist"]
[Result "0-1"]
[WhiteElo "2317"]
[BlackElo "2444"]
[TimeControl "180+1"]
[EndTime "9:29:46 PDT"]
[Termination "Eloist won by resignation"]

1. e4 {[%clk 0:03:00.9]} 1... e6 {[%clk 0:02:59]} 2. d4 {[%clk 0:02:59.6]} 2...
d5 {[%clk 0:02:57.1]} 3. Nd2 {[%clk 0:02:59.6]} 3... Nf6 {[%clk 0:02:56.4]} 4.
e5 {[%clk 0:03:00]} 4... Nfd7 {[%clk 0:02:56.2]} 5. f3 {[%clk 0:03:00.5]} 5...
c5 {[%clk 0:02:55.8]} 6. c3 {[%clk 0:02:57.1]} 6... Nc6 {[%clk 0:02:55]} 7. Nb3
{[%clk 0:02:32.1]} 7... a5 {[%clk 0:02:43.2]} 8. a4 {[%clk 0:02:27.8]} 8... cxd4
{[%clk 0:02:38.4]} 9. cxd4 {[%clk 0:02:25.5]} 9... Bb4+ {[%clk 0:02:36.8]} 10.
Kf2 {[%clk 0:02:21.3]} 10... O-O {[%clk 0:02:27.6]} 11. g3 {[%clk 0:02:08.5]}
11... f6 {[%clk 0:02:27.2]} 12. exf6 {[%clk 0:02:07.9]} 12... Qxf6 {[%clk
0:02:22.5]} 13. Kg2 {[%clk 0:02:07.5]} 13... e5 {[%clk 0:02:14.9]} 14. Nh3
{[%clk 0:01:21.3]} 14... Nb6 {[%clk 0:01:40.5]} 15. Nf2 {[%clk 0:01:11]} 15...
e4 {[%clk 0:01:36.1]} 16. f4 {[%clk 0:01:09.4]} 16... Be6 {[%clk 0:01:23.4]} 17.
Bb5 {[%clk 0:00:54.1]} 17... Ne7 {[%clk 0:01:16.3]} 18. Rf1 {[%clk 0:00:44.5]}
18... Nf5 {[%clk 0:01:14.6]} 19. Qe2 {[%clk 0:00:33.2]} 19... Rac8 {[%clk
0:01:12.3]} 20. Be3 {[%clk 0:00:29.2]} 20... Rc2 {[%clk 0:01:09.6]} 21. Nd2
{[%clk 0:00:17.4]} 21... Nxd4 {[%clk 0:01:02.7]} 22. Qd1 {[%clk 0:00:10.8]}
22... Nf5 {[%clk 0:00:57.4]} 23. Bxb6 {[%clk 0:00:09.5]} 23... Rxd2 {[%clk
0:00:57.4]} 24. Qc1 {[%clk 0:00:08.3]} 24... e3 {[%clk 0:00:54]} 25. Qc7 {[%clk
0:00:01.8]} 25... Qxb2 {[%clk 0:00:42.1]} 26. Rae1 {[%clk 0:00:01.2]} 26...
Rxf2+ {[%clk 0:00:41.5]} 27. Rxf2 {[%clk 0:00:01.7]} 27... Qxf2+ {[%clk
0:00:41.3]} 28. Kh3 {[%clk 0:00:02.6]} 28... Nxg3+ {[%clk 0:00:38.5]} 0-1

[Event "Early-Titled-Tuesday-Blitz-May-14-2024"]
[Site "Chess.com"]
[Date "2024.05.14"]
[Round "8"]
[White "Manukyan_Artak"]
[Black "juancruzarias"]
[Result "0-1"]
[WhiteElo "2560"]
[BlackElo "2693"]
[TimeControl "180+1"]
[EndTime "9:29:47 PDT"]
[Termination "juancruzarias won by checkmate"]

1. e4 {[%clk 0:02:54.5]} 1... c6 {[%clk 0:02:57.7]} 2. d4 {[%clk 0:02:54.2]}
2... d5 {[%clk 0:02:58.2]} 3. e5 {[%clk 0:02:53.5]} 3... c5 {[%clk 0:02:58.1]}
4. dxc5 {[%clk 0:02:53.4]} 4... e6 {[%clk 0:02:58.2]} 5. a3 {[%clk 0:02:53.5]}
5... Bxc5 {[%clk 0:02:56]} 6. b4 {[%clk 0:02:53.5]} 6... Be7 {[%clk 0:02:55.6]}
7. c4 {[%clk 0:02:50.7]} 7... dxc4 {[%clk 0:02:51.5]} 8. Qxd8+ {[%clk
0:02:49.4]} 8... Bxd8 {[%clk 0:02:52.4]} 9. Bxc4 {[%clk 0:02:49.5]} 9... Ne7
{[%clk 0:02:49.1]} 10. Bb2 {[%clk 0:02:49.6]} 10... b6 {[%clk 0:02:29.5]} 11.
Nf3 {[%clk 0:02:44]} 11... Bb7 {[%clk 0:02:27.4]} 12. Nc3 {[%clk 0:02:40.7]}
12... a6 {[%clk 0:02:24.9]} 13. O-O {[%clk 0:02:36.6]} 13... Nd7 {[%clk
0:02:22.3]} 14. Rfe1 {[%clk 0:02:33.9]} 14... Ng6 {[%clk 0:02:18.8]} 15. Ne4
{[%clk 0:02:31.5]} 15... Bxe4 {[%clk 0:02:11.9]} 16. Rxe4 {[%clk 0:02:32.4]}
16... b5 {[%clk 0:02:01.3]} 17. Bb3 {[%clk 0:02:28.5]} 17... Ke7 {[%clk
0:01:50.7]} 18. Rd1 {[%clk 0:02:16.7]} 18... Bb6 {[%clk 0:01:47.2]} 19. h4
{[%clk 0:02:13]} 19... h5 {[%clk 0:01:39.7]} 20. Bc1 {[%clk 0:02:09.6]} 20...
Rhc8 {[%clk 0:01:29.1]} 21. Bg5+ {[%clk 0:02:01.5]} 21... Ke8 {[%clk 0:01:28.2]}
22. Rc1 {[%clk 0:01:23.4]} 22... Rxc1+ {[%clk 0:01:26.7]} 23. Bxc1 {[%clk
0:01:22.8]} 23... Rc8 {[%clk 0:01:27]} 24. Bd2 {[%clk 0:01:22.7]} 24... Ne7
{[%clk 0:01:05.5]} 25. Kf1 {[%clk 0:01:15.5]} 25... Nf5 {[%clk 0:01:01]} 26. Ke2
{[%clk 0:01:12.3]} 26... Nf8 {[%clk 0:01:01]} 27. g3 {[%clk 0:01:03.6]} 27...
Ng6 {[%clk 0:01:01]} 28. a4 {[%clk 0:00:57.8]} 28... Nge7 {[%clk 0:00:58.9]} 29.
axb5 {[%clk 0:00:55.4]} 29... axb5 {[%clk 0:00:59.8]} 30. Ke1 {[%clk 0:00:51.6]}
30... Ra8 {[%clk 0:00:54.1]} 31. Kf1 {[%clk 0:00:38.5]} 31... Ra1+ {[%clk
0:00:51.8]} 32. Re1 {[%clk 0:00:37.2]} 32... Ra3 {[%clk 0:00:49.8]} 33. Bd1
{[%clk 0:00:34.6]} 33... Nd5 {[%clk 0:00:48.6]} 34. Ng5 {[%clk 0:00:32.9]} 34...
Ra2 {[%clk 0:00:48.3]} 35. Bc1 {[%clk 0:00:22.9]} 35... Rxf2+ {[%clk 0:00:46.6]}
36. Kg1 {[%clk 0:00:22.1]} 36... Re2+ {[%clk 0:00:45.2]} 37. Kf1 {[%clk
0:00:22.3]} 37... Nxg3# {[%clk 0:00:45.3]} 0-1